bitfinex-derivatives/quotes_ETHF0:USTF0_20250923
["timestamp","ask_amount","ask_price","bid_price","bid_amount"]
[1758618541971,1.28782997,4215.8,4215.7,0.4381]
[1758618542175,1.28782997,4215.8,4215.7,0.7506]
[1758618546969,0.6696,4215.5,4215.4,0.4293]
[1758618547163,0.3165,4215.4,4215.1,0.5515]
[1758618547468,0.7604,4215.2,4215.1,0.5182]
[1758618547774,1.27762997,4215.2,4215.1,0.7418]
[1758618548568,0.3165,4214.7,4214.6,0.42679]
[1758618548866,0.3165,4214.7,4214.6,1.16859]
[1758618548867,0.83372997,4214.7,4214.6,1.16859]
[1758618549075,0.51722997,4214.7,4214.6,1.16859]
[1758618549569,1.05642997,4214.7,4214.6,1.16859]
[1758618549969,0.51722997,4214.7,4214.6,5.64486]
[1758618550168,0.3165,4215.2,4215.1,1.16854]
[1758618550362,0.5392,4215.2,4215.1,1.16854]
[1758618550562,1.0617339,4215.2,4215.1,1.16854]
[1758618551573,0.5225339,4215.2,4215.1,1.16854]
[1758618551771,0.4439,4215.3,4215.2,0.96282]
[1758618551973,0.4439,4215.3,4215.2,1.16852]
[1758618552269,0.96797797,4215.3,4215.2,0.7418]
[1758618552467,1.28447797,4215.3,4215.2,0.7418]
[1758618553172,1.06327797,4215.3,4215.2,0.7418]
[1758618553672,0.52407797,4215.3,4215.2,0.7418]
[1758618553873,0.5392,4215.6,4215.5,0.7418]
[1758618554072,1.06322814,4215.6,4215.5,0.7418]
[1758618554474,1.06322814,4215.6,4215.5,41.9685]
[1758618555873,0.5392,4215.6,4215.5,41.9685]
[1758618559065,0.5392,4215.6,4215.5,41.5418]
[1758618559271,0.5392,4215.6,4215.5,41.0057]
[1758618560183,0.5392,4215.6,4215.5,41.3357]
[1758618560473,1.26842763,4215.6,4215.5,0.2057]
[1758618560774,0.7165,4215.3,4215.2,0.63902]
[1758618560981,0.7165,4215.3,4215.2,41.76902]
[1758618562265,0.7165,4215.3,4215.2,41.43902]
[1758618562465,0.7165,4215.3,4215.2,0.63902]
[1758618562670,0.7165,4215.3,4215.2,0.96902]
[1758618562870,0.7165,4215.3,4215.2,1.19152]
[1758618565478,0.7165,4215.3,4214.5,0.1243]
[1758618565479,0.8508,4215.0,4214.9,0.2123]
[1758618565670,0.8508,4215.0,4214.9,0.7648]
[1758618565870,0.5113,4215.0,4214.9,0.7648]
[1758618568276,0.1343,4215.5,4215.1,0.42673]
[1758618568474,0.2061,4215.2,4215.1,0.86153]
[1758618568674,0.5113,4215.2,4215.1,0.86153]
[1758618568973,0.5113,4215.2,4215.1,1.19153]
[1758618571176,1.24062189,4215.2,4215.1,0.7648]
[1758618572575,0.5113,4215.2,4215.1,0.7648]
[1758618574682,0.549,4215.5,4215.4,1.16741]
[1758618574877,1.29364445,4215.5,4215.4,1.16741]
[1758618577586,1.29372116,4215.5,4215.4,1.16741]
[1758618580686,1.41862116,4215.5,4215.4,0.83661]
[1758618581087,1.41862116,4215.5,4215.4,1.16741]
[1758618581387,0.85902116,4215.5,4215.4,1.16741]
[1758618581687,0.2142,4216.4,4216.3,0.2045]
[1758618581883,1.00671,4216.4,4216.3,0.5353]
[1758618582083,1.2939213,4216.4,4216.3,0.2045]
[1758618582698,1.2939213,4216.4,4216.2,0.42662]
[1758618582906,1.2939213,4216.3,4216.2,0.63112]
[1758618583205,1.2939213,4216.3,4216.2,1.16732]
[1758618585403,0.1343,4217.0,4216.9,0.2045]
[1758618585603,0.9038,4217.0,4216.9,0.7407]
[1758618585805,1.42790468,4217.0,4216.9,0.7407]
[1758618586907,1.29360468,4217.0,4216.9,0.7407]
[1758618587103,1.41850468,4217.0,4216.9,0.2045]
[1758618587303,1.41850468,4217.0,4216.9,0.5353]
[1758618587604,1.41850468,4217.0,4216.9,0.7407]
[1758618589005,1.41850468,4217.0,4216.9,0.4099]
[1758618589207,1.41747104,4217.0,4216.9,0.2045]
[1758618589401,0.8944,4217.0,4216.8,0.42656]
[1758618589704,0.4347,4216.9,4216.6,0.42658]
[1758618589904,0.4347,4216.7,4216.6,0.42658]
[1758618590105,0.7695,4216.7,4216.6,0.42658]
[1758618590611,0.7695,4216.9,4216.8,0.83646]
[1758618591696,0.7695,4216.9,4216.8,0.63106]
[1758618592109,0.7695,4216.9,4216.8,0.42656]
[1758618592608,0.7695,4216.9,4216.8,0.63106]
[1758618593110,0.7695,4216.9,4216.8,1.16726]
[1758618593503,1.29214724,4216.9,4216.8,1.16726]
[1758618593699,1.07164724,4216.9,4216.8,1.16726]
[1758618594010,1.29214724,4216.9,4216.8,1.16726]
[1758618596007,1.29214724,4216.9,4216.8,0.42656]
[1758618596415,1.29214724,4216.9,4216.8,0.63106]
[1758618596615,1.29214724,4216.9,4216.8,0.96186]
[1758618596816,1.29214724,4216.9,4216.8,0.63106]
[1758618598209,1.29214724,4216.9,4216.8,0.96186]
[1758618599722,1.29214724,4216.9,4216.8,1.16726]
[1758618600107,0.52264724,4216.9,4216.8,1.16726]
[1758618600417,1.29214724,4216.9,4216.8,1.16726]
[1758618600717,1.29214724,4216.9,4216.8,0.42656]
[1758618602313,1.71869724,4216.9,4216.2,0.3085]
[1758618602510,1.71869724,4216.9,4216.2,0.64223]
[1758618602511,0.7542,4216.3,4216.2,0.64223]
[1758618602721,1.27684724,4216.3,4216.2,0.64223]
[1758618602921,1.27684724,4216.3,4216.2,1.15603]
[1758618603325,0.7542,4216.3,4216.2,1.15603]
[1758618604112,0.3072,4216.3,4216.2,1.15603]
[1758618604313,0.7542,4216.9,4216.8,0.64216]
[1758618604514,0.7542,4216.9,4216.8,0.42656]
[1758618604913,0.3072,4216.8,4216.6,0.42658]
[1758618605112,0.7542,4216.7,4216.6,0.64218]
[1758618605721,0.7542,4216.7,4216.6,0.95068]
[1758618605918,0.7542,4216.7,4216.6,1.15598]
[1758618607521,0.7542,4216.7,4216.6,0.84748]
[1758618608021,0.7542,4216.7,4216.6,0.64218]
[1758618608724,0.7542,4216.7,4216.6,1.15598]
[1758618609625,0.7542,4216.7,4216.6,0.64218]
[1758618610628,0.7542,4216.7,4216.6,0.95068]
[1758618610926,0.7542,4216.7,4216.6,1.15598]
[1758618611126,0.5719,4217.0,4216.9,0.4209]
[1758618611327,1.09684486,4217.0,4216.9,0.7294]
[1758618611727,1.40404486,4217.0,4216.9,0.7294]
[1758618613629,1.05574486,4217.0,4216.9,0.7294]
[1758618613927,1.27914486,4217.0,4216.9,0.7294]
[1758618614123,1.41154486,4217.0,4216.9,41.5294]
[1758618614716,1.41154486,4217.0,4216.9,0.7294]
[1758618615022,1.27914486,4217.0,4216.9,0.7294]
[1758618615226,0.83214486,4217.0,4216.9,0.7294]
[1758618616224,0.52494486,4217.0,4216.9,0.7294]
[1758618616529,0.83214486,4217.0,4216.9,0.7294]
[1758618617416,0.52494486,4217.0,4216.9,0.7294]
[1758618619631,1.26824486,4217.0,4216.9,0.7294]
[1758618620829,1.06204486,4217.0,4216.9,0.7294]
[1758618621534,0.52494486,4217.0,4216.9,0.7294]
[1758618621733,1.06204486,4217.0,4216.9,0.7294]
[1758618625535,1.26824486,4217.0,4216.9,0.7294]
[1758618627547,1.39024486,4217.0,4216.9,0.7294]
[1758618628944,1.26824486,4217.0,4216.9,0.7294]
[1758618629738,1.26824486,4217.0,4216.9,41.5294]
[1758618629938,1.06204486,4217.0,4216.9,41.5294]
[1758618630937,0.1249,4217.5,4216.9,41.5294]
[1758618630938,0.3164,4217.4,4217.3,0.4198]
[1758618631141,1.05097241,4217.4,4217.3,0.7351]
[1758618631339,1.26887241,4217.4,4217.3,0.7351]
[1758618631642,1.26887241,4217.4,4217.3,1.16161]
[1758618632048,1.26887241,4217.4,4217.3,0.7351]
[1758618632249,1.26887241,4217.4,4217.3,0.4198]
[1758618634042,1.26887241,4217.4,4217.3,0.7351]
[1758618634240,0.47807241,4217.4,4217.3,0.7351]
[1758618634440,0.27807241,4217.4,4217.3,0.7351]
[1758618636846,0.42567241,4217.4,4217.3,0.5174]
[1758618637037,0.42567241,4217.4,4217.3,0.3153]
[1758618639044,0.5747,4217.1,4217.0,0.1223]
[1758618639244,0.5747,4217.1,4217.0,0.3244]
[1758618639545,0.5747,4217.1,4217.0,0.6397]
[1758618639546,0.85363,4217.1,4217.0,0.6397]
[1758618639746,0.4271,4217.1,4217.0,0.8574]
[1758618640351,0.63569,4217.6,4217.5,0.3244]
[1758618640655,0.85359,4217.6,4217.5,0.8574]
[1758618641156,1.00119,4217.6,4217.5,0.8574]
[1758618642452,0.85359,4217.6,4217.5,0.8574]
[1758618643753,1.00119,4217.6,4217.5,0.6397]
[1758618644054,1.00119,4217.6,4217.5,0.3153]
[1758618645549,0.2092,4217.6,4217.5,0.5421]
[1758618645753,0.4271,4217.6,4217.5,0.5421]
[1758618646245,0.4271,4217.6,4217.5,0.8574]
[1758618646753,0.94578377,4217.6,4217.5,0.8574]
[1758618647356,0.51868377,4217.6,4217.5,0.8574]
[1758618647655,0.9458083,4217.8,4217.7,0.4198]
[1758618647849,0.94580831,4217.8,4217.7,0.4198]
[1758618648148,0.72790831,4217.8,4217.7,0.7351]
[1758618648354,0.94580831,4217.8,4217.7,0.7351]
[1758618648953,0.51870831,4217.8,4217.7,0.7351]
[1758618649255,0.94580831,4217.8,4217.7,0.7351]
[1758618652753,0.51870831,4217.8,4217.7,0.7351]
[1758618654160,0.022,4217.9,4217.8,0.74176]
[1758618654363,3.63416,4218.9,4218.8,0.4198]
[1758618654563,0.72485243,4218.9,4218.8,0.7351]
[1758618654753,0.51565243,4218.9,4218.8,0.7351]
[1758618654954,0.4271,4219.6,4219.5,0.3244]
[1758618655159,0.2092,4219.0,4218.9,0.3153]
[1758618655363,0.68009,4218.6,4218.4,0.3153]
[1758618655664,0.6808,4218.5,4218.4,0.5174]
[1758618655858,0.4271,4218.5,4218.4,0.5174]
[1758618656158,3.2078,4219.3,4219.0,0.1223]
[1758618656355,0.42634,4219.1,4218.6,0.42638]
[1758618656560,0.2092,4218.7,4218.6,0.84618]
[1758618657062,0.2092,4218.7,4218.6,1.16148]
[1758618657263,0.85343,4219.2,4219.1,0.2021]
[1758618657464,1.62304423,4219.2,4219.1,0.3153]
[1758618658767,0.6808,4218.8,4218.7,0.5174]
[1758618659064,0.4271,4218.8,4218.7,0.5174]
[1758618659864,0.4271,4218.8,4218.7,0.7351]
[1758618660067,0.42634,4219.1,4218.7,0.84617]
[1758618660263,0.2092,4219.1,4219.0,0.8574]
[1758618660457,0.42636,4218.8,4218.6,0.3153]
[1758618660663,0.4177,4218.7,4218.6,0.7193]
[1758618660856,3.93038364,4219.3,4218.7,0.73457]
[1758618661063,0.2156,4219.1,4219.0,0.8422]
[1758618661264,0.93342546,4219.1,4219.0,0.8422]
[1758618662069,1.18842546,4219.1,4219.0,0.8422]
[1758618662368,0.93342546,4219.1,4219.0,0.8422]
[1758618664264,0.73132546,4219.1,4219.0,0.8422]
[1758618664768,0.51572546,4219.1,4219.0,0.8422]
[1758618667870,0.73132546,4219.1,4219.0,0.8422]
[1758618668670,0.42628,4219.7,4219.4,0.7193]
[1758618668879,0.51494881,4219.6,4219.5,0.8422]
[1758618669171,0.73054881,4219.6,4219.5,0.8422]
[1758618669571,0.51494881,4219.6,4219.5,4.05]
[1758618670166,3.2078,4220.9,4220.2,0.42621]
[1758618670368,0.5454,4220.9,4220.8,0.4111]
[1758618670566,0.5454,4220.9,4220.8,0.7193]
[1758618670971,0.42612,4221.2,4220.8,0.7193]
[1758618671172,0.3298,4221.5,4221.4,0.7193]
[1758618671372,0.3298,4222.6,4222.1,0.4111]
[1758618671568,0.59387514,4222.2,4222.1,3.9271]
[1758618671871,0.37827514,4222.2,4222.1,49.38998]
[1758618672262,0.84359,4223.5,4223.4,0.7193]
[1758618672566,2.53373348,4225.0,4224.0,0.1229]
[1758618672763,0.1231,4227.0,4226.4,0.42559]
[1758618672966,3.2078,4228.7,4226.9,3.2078]
[1758618673269,0.1231,4228.5,4228.3,3.6332]
[1758618673571,0.1231,4229.5,4228.4,0.67639]
[1758618673770,0.1231,4229.5,4229.4,3.2078]
[1758618673969,0.1231,4230.5,4226.8,4.7136867]
[1758618673970,0.1231,4229.0,4226.8,4.7136867]
[1758618674166,0.3298,4228.9,4228.6,3.2078]
[1758618674365,0.3298,4228.7,4228.6,3.2078]
[1758618674570,0.3298,4228.4,4228.1,3.2078]
[1758618674971,0.1231,4228.5,4228.1,3.2078]
[1758618675774,1.03243333,4228.2,4228.1,3.02732852]
[1758618676076,0.3298,4226.4,4226.2,0.272]
[1758618676278,0.3298,4226.4,4226.3,3.2078]
[1758618676483,0.3298,4226.4,4226.3,3.12772048]
[1758618677179,4.3298,4226.4,4226.3,3.12772048]
[1758618677574,0.1278,4224.5,4224.3,0.272]
[1758618677770,0.4536,4224.5,4224.4,3.2078]
[1758618677975,0.1278,4224.5,4224.4,3.2078]
[1758618678874,0.1278,4225.5,4225.3,0.4257]
[1758618679075,0.4536,4225.5,4225.4,3.2078]
[1758618680081,0.4536,4225.5,4225.4,7.2078]
[1758618680475,0.1278,4226.5,4226.3,0.4256]
[1758618680675,10.63084,4230.1,4225.3,0.272]
[1758618680676,0.3258,4227.2,4226.9,0.42554]
[1758618680979,0.1278,4228.0,4226.9,0.42554]
[1758618680980,0.3258,4227.9,4226.9,3.2078]
[1758618681284,0.3258,4227.4,4227.0,3.2078]
[1758618681874,0.1278,4227.5,4227.0,3.2078]
[1758618682079,0.3258,4227.4,4227.0,3.2078]
[1758618682781,0.272,4227.5,4227.0,3.2078]
[1758618683085,0.3258,4227.4,4227.0,3.2078]
[1758618683271,0.1278,4227.5,4227.0,3.2078]
[1758618683583,0.3258,4227.4,4227.0,3.2078]
[1758618683779,0.3258,4227.2,4227.0,3.2078]
[1758618683984,0.272,4227.3,4227.0,3.2078]
[1758618684474,0.3258,4227.2,4227.0,3.2078]
[1758618684676,0.1278,4227.5,4227.0,3.63333]
[1758618684876,0.3258,4227.4,4227.0,3.63333]
[1758618685080,0.1278,4227.5,4227.0,3.2078]
[1758618685280,0.3258,4227.4,4227.0,3.2078]
[1758618685479,0.3258,4227.2,4227.0,3.2078]
[1758618685883,0.3258,4227.2,4227.0,3.04901507]
[1758618686087,0.3258,4227.1,4227.0,3.04901507]
[1758618686685,0.3258,4227.4,4227.2,0.42551]
[1758618686887,0.3258,4227.4,4227.0,3.04901507]
[1758618687085,0.1278,4227.5,4227.0,3.04901507]
[1758618687284,0.3258,4227.4,4227.0,3.04901507]
[1758618687579,0.4255,4227.4,4227.0,3.04901507]
[1758618687780,0.75133,4227.1,4227.0,3.04901507]
[1758618687986,0.5968,4227.1,4227.0,3.04901507]
[1758618688480,4.5968,4227.1,4227.0,3.04901507]
[1758618688676,0.3258,4226.9,4226.0,0.42563]
[1758618688977,0.75135,4226.9,4226.8,3.2078]
[1758618689280,0.3258,4226.4,4226.3,3.2078]
[1758618689481,0.5968,4226.4,4226.3,3.2078]
[1758618689686,0.3258,4226.4,4226.3,3.63341]
[1758618689989,0.3258,4227.4,4227.0,0.42553]
[1758618690287,0.3938,4227.5,4226.8,3.2078]
[1758618690288,0.1278,4227.0,4226.8,3.2078]
[1758618690589,0.3258,4226.9,4226.8,3.2078]
[1758618691291,4.3258,4226.9,4226.8,3.2078]
[1758618691496,0.3328,4226.3,4226.2,3.2078]
[1758618694794,4.3328,4226.3,4226.2,3.2078]
[1758618695191,0.1269,4225.5,4225.0,3.2078]
[1758618695493,0.3328,4225.1,4225.0,3.2078]
[1758618695888,0.6028,4225.1,4225.0,3.2078]
[1758618697492,0.6018,4225.1,4225.0,3.2078]
[1758618699784,0.3328,4225.1,4225.0,3.2078]
[1758618699991,0.6018,4225.1,4225.0,3.2078]
[1758618700282,1.09851142,4225.1,4225.0,3.2078]
[1758618700483,0.6018,4225.1,4225.0,3.2078]
[1758618701296,0.4597,4224.5,4224.4,3.63359]
[1758618701997,0.7277,4224.5,4224.4,3.2078]
[1758618702298,1.22184649,4224.5,4224.4,3.2078]
[1758618704090,0.4597,4224.0,4223.9,3.63365]
[1758618704290,0.95384649,4224.0,4223.9,3.63365]
[1758618704996,0.95429035,4224.0,4223.9,3.63365]
[1758618706395,0.4597,4224.5,4224.4,0.4258]
[1758618706598,0.3939,4224.5,4224.2,0.42581]
[1758618706803,0.3328,4224.3,4224.2,0.42581]
[1758618707102,0.82756137,4224.3,4224.2,0.42581]
[1758618708607,0.82756137,4224.3,4223.9,3.2078]
[1758618708902,0.1269,4224.0,4223.9,3.63365]
[1758618709202,0.95446137,4224.0,4223.9,3.63365]
[1758618709397,0.4597,4224.0,4223.9,3.63365]
[1758618710805,1.17614036,4224.0,4223.9,3.2078]
[1758618711103,0.4288,4223.7,4223.4,3.2078]
[1758618711303,0.6818,4223.5,4223.4,3.63369]
[1758618711505,0.6818,4223.5,4223.4,3.2078]
[1758618711694,1.17620903,4223.5,4223.4,3.2078]
[1758618711898,1.38290903,4223.5,4223.4,3.2078]
[1758618712102,0.8885,4223.5,4223.4,3.2078]
[1758618712304,1.38291033,4223.5,4223.4,3.2078]
[1758618712502,0.8885,4223.5,4223.4,3.2078]
[1758618712802,0.4597,4223.0,4222.9,3.63375]
[1758618713300,0.4597,4223.0,4222.9,3.2078]
[1758618713795,0.95407035,4223.0,4222.9,3.2078]
[1758618714907,0.4597,4222.5,4222.4,3.2078]
[1758618715109,0.95407035,4222.5,4222.4,1.2078]
[1758618715406,0.95407035,4222.5,4221.4,1.06524]
[1758618715407,4.09398742,4222.5,4222.0,0.42603]
[1758618715612,0.3328,4222.3,4222.0,0.42603]
[1758618715813,0.3328,4222.2,4222.1,0.42602]
[1758618717607,0.265,4222.2,4222.1,0.42602]
[1758618717913,0.5978,4222.2,4222.1,0.42602]
[1758618718314,0.8199,4222.2,4222.1,0.42602]
[1758618718514,0.5549,4222.2,4222.1,0.42602]
[1758618718717,0.8199,4222.2,4222.1,0.42602]
[1758618720207,0.5549,4222.2,4222.1,0.42602]
[1758618720413,0.5968,4222.2,4222.1,0.42602]
[1758618720715,3.3347,4222.5,4221.9,3.2078]
[1758618720716,3.6664,4222.5,4222.4,0.426]
[1758618720904,0.4586,4223.0,4222.1,1.06508]
[1758618721107,0.68995,4222.9,4222.6,0.42597]
[1758618721310,0.8866,4222.5,4222.2,0.42601]
[1758618721609,0.6785,4222.0,4221.9,3.2078]
[1758618721813,0.6785,4222.5,4222.4,0.426]
[1758618722010,1.43633375,4222.5,4222.4,0.426]
[1758618722416,1.64443375,4222.5,4222.4,0.426]
[1758618725012,1.38043375,4222.5,4222.4,0.426]
[1758618725218,0.3417,4223.0,4222.9,0.42595]
[1758618725517,1.09996084,4223.0,4222.9,0.42595]
[1758618725712,1.30806084,4223.0,4221.9,3.2078]
[1758618725910,0.8866,4222.5,4222.4,0.42599]
[1758618726215,1.1496,4222.5,4222.4,0.42599]
[1758618726814,0.7267,4222.5,4222.4,0.42599]
[1758618727025,0.6785,4222.5,4222.4,0.42599]
[1758618727210,0.9415,4222.5,4222.4,0.42599]
[1758618727417,1.1496,4222.5,4222.4,0.42599]
[1758618727715,1.64399162,4222.5,4222.4,0.42599]
[1758618728216,1.22109162,4222.5,4222.4,0.42599]
[1758618728409,0.7267,4222.5,4222.4,0.42599]
[1758618728610,0.1269,4223.0,4222.9,0.42595]
[1758618728810,0.62132879,4223.0,4222.9,0.42595]
[1758618729009,0.1269,4223.0,4222.9,0.42595]
[1758618729214,0.7216,4223.0,4222.9,0.42595]
[1758618729906,0.55279,4223.5,4222.9,0.42595]
[1758618729907,0.4586,4223.5,4223.4,0.4259]
[1758618730113,0.6734,4223.5,4223.4,0.4259]
[1758618730320,1.47025452,4223.5,4223.2,0.42591]
[1758618730515,0.7546,4223.3,4223.2,0.42591]
[1758618730818,1.24916452,4223.3,4223.0,0.42593]
[1758618731021,0.3317,4223.2,4223.0,0.42593]
[1758618731207,0.5465,4223.1,4223.0,0.42593]
[1758618731406,1.04262408,4223.1,4223.0,0.42593]
[1758618731616,1.25072408,4223.1,4223.0,0.42593]
[1758618731818,0.7546,4223.1,4223.0,0.42593]
[1758618732321,0.3317,4223.1,4223.0,0.42593]
[1758618732711,0.4586,4223.5,4223.4,0.4259]
[1758618732915,1.21782178,4223.5,4223.4,0.4259]
[1758618733114,1.43262178,4223.5,4223.4,0.4259]
[1758618733515,0.95482178,4223.5,4223.4,0.4259]
[1758618733717,0.49622178,4223.5,4223.4,0.4259]
[1758618733918,0.49622178,4223.6,4223.4,0.4259]
[1758618734112,0.82792178,4223.6,4223.4,0.4259]
[1758618734316,0.132,4223.5,4223.3,0.42591]
[1758618734521,0.3317,4223.4,4223.3,0.42591]
[1758618735122,0.5465,4223.4,4223.3,0.42591]
[1758618735324,0.7546,4223.4,4223.3,0.42591]
[1758618735521,0.7546,4223.3,4223.2,0.42591]
[1758618735824,1.25109789,4223.3,4223.2,0.42591]
[1758618736815,0.3317,4223.2,4223.0,0.42593]
[1758618737017,1.25109789,4223.1,4223.0,0.42593]
[1758618737525,0.49649789,4223.1,4223.0,4.66272999]
[1758618737831,0.5321,4223.4,4223.3,0.42591]
[1758618738020,1.02883964,4223.4,4223.3,0.42591]
[1758618738623,1.51243964,4223.4,4223.3,0.42591]
[1758618739226,1.25043964,4223.4,4223.3,0.42591]
[1758618739426,1.51243964,4223.4,4223.3,0.42591]
[1758618740628,1.51243964,4223.4,4222.1,2.13017]
[1758618740629,0.654,4223.0,4222.9,0.42594]
[1758618740829,0.4412,4223.5,4223.4,0.4259]
[1758618741024,0.6641,4223.5,4223.4,0.4259]
[1758618741222,0.2229,4223.4,4223.3,0.42591]
[1758618741427,1.25084055,4223.4,4223.3,0.42591]
[1758618746936,1.02924055,4223.4,4223.3,0.42591]
[1758618747138,0.3092,4223.4,4223.3,0.42591]
[1758618747539,0.132,4223.5,4223.3,0.42591]
[1758618747738,0.4412,4223.5,4223.3,0.42591]
[1758618747931,0.3092,4223.4,4223.3,0.42591]
[1758618748432,0.3092,4223.4,4223.3,45.22591]
[1758618750744,0.132,4223.5,4223.3,45.22591]
[1758618750933,0.4385,4223.5,4223.3,45.22591]
[1758618751136,0.3065,4223.4,4223.3,45.22591]
[1758618752431,0.8721,4224.0,4223.9,0.42585]
[1758618752630,1.3655727,4224.0,4223.9,0.42585]
[1758618755235,1.0590727,4224.0,4223.8,0.42585]
[1758618755444,1.2335727,4223.9,4223.8,0.42585]
[1758618760944,3.2078,4224.3,4223.1,5.5798]
[1758618760945,1.75752,4224.3,4223.1,5.5798]
[1758618761145,0.4336,4226.1,4226.0,0.42563]
[1758618761347,0.1227,4225.5,4225.0,0.3053]
[1758618761552,0.1227,4225.5,4224.9,0.42574]
[1758618761553,0.4336,4225.1,4224.9,0.42574]
[1758618761745,0.5563,4225.0,4224.9,0.42574]
[1758618761946,0.5563,4225.0,4224.9,0.62864]
[1758618762253,0.4336,4225.0,4224.9,1.15004]
[1758618763345,0.7401,4225.0,4224.9,1.15004]
[1758618764752,0.4336,4225.0,4224.9,1.15004]
[1758618765152,0.7401,4225.0,4224.9,1.15004]
[1758618765349,0.4336,4225.0,4224.9,1.15004]
[1758618765550,0.8628,4225.0,4224.9,0.84474]
[1758618765749,0.8628,4225.0,4224.9,0.62864]
[1758618765955,0.8628,4225.0,4224.9,0.93394]
[1758618766149,0.8628,4225.0,4224.9,1.15004]
[1758618766852,0.8628,4225.0,4224.9,0.42574]
[1758618768253,0.8628,4225.0,4224.9,0.62864]
[1758618768448,0.8628,4225.0,4224.9,1.15004]
[1758618768859,0.8628,4225.0,4224.9,0.84474]
[1758618769362,0.8628,4225.0,4224.9,0.62864]
[1758618770263,0.8628,4225.0,4224.9,0.42574]
[1758618771162,0.8628,4225.0,4224.9,0.62864]
[1758618773059,0.8628,4225.0,4224.9,0.42575]
[1758618773261,5.34907534,4225.0,4224.2,0.3053]
[1758618773457,0.7401,4224.9,4224.8,0.42575]
[1758618773659,1.22638019,4224.9,4224.8,0.42575]
[1758618774757,0.4336,4223.8,4223.7,0.93407]
[1758618774956,0.7401,4223.8,4223.7,1.15017]
[1758618775160,0.7401,4223.8,4223.7,0.84487]
[1758618775362,0.7401,4223.8,4223.7,0.62877]
[1758618776259,0.7401,4223.8,4223.7,0.93407]
[1758618776760,0.7401,4223.8,4223.7,1.15017]
[1758618777466,0.7401,4223.8,4223.7,0.62877]
[1758618780167,0.7401,4223.8,4223.7,1.15017]
[1758618781664,0.8875,4224.5,4224.4,0.6315]
[1758618781869,1.37418616,4224.5,4224.4,1.1752]
[1758618784368,1.25148616,4224.5,4224.4,1.1744]
[1758618784575,0.91768616,4224.5,4224.4,1.1744]
[1758618784771,0.431,4224.5,4224.4,1.1744]
[1758618784976,0.7648,4224.5,4224.4,1.1744]
[1758618787974,0.8911,4224.5,4224.4,0.6307]
[1758618789281,1.37805244,4224.5,4224.4,0.6307]
[1758618789683,1.37805244,4224.5,4224.4,0.4258]
[1758618790578,1.37805244,4224.5,4224.4,0.6315]
[1758618791272,1.37805244,4224.5,4224.4,0.4258]
[1758618793082,1.37805244,4224.5,4224.4,0.6315]
[1758618793878,1.37805244,4224.5,4224.4,0.4258]
[1758618795784,1.37805244,4224.5,4224.4,0.6315]
[1758618796178,1.37805244,4224.5,4224.4,0.2057]
[1758618797284,0.7339,4223.7,4223.6,4.36528]
[1758618797483,0.5167,4224.3,4224.2,0.42]
[1758618797678,1.21717273,4224.3,4224.2,0.7316]
[1758618801983,1.21717273,4224.3,4224.2,0.42]
[1758618802387,0.5321,4223.6,4223.5,0.42]
[1758618802589,0.7339,4223.6,4223.5,0.7316]
[1758618802990,0.7339,4223.6,4223.5,1.15749]
[1758618803196,0.7339,4223.6,4223.5,0.2156]
[1758618803398,1.21764912,4223.6,4223.5,0.2156]
[1758618803898,1.21764912,4223.6,4223.5,0.5272]
[1758618804590,1.21764912,4223.6,4223.5,0.7316]
[1758618806495,1.21764912,4223.6,4223.5,0.2156]
[1758618807809,1.21764912,4223.6,4223.2,0.95312]
[1758618807810,0.419,4223.3,4223.2,0.95312]
[1758618808004,0.7339,4223.3,4223.2,0.95312]
[1758618808904,1.21743213,4223.3,4223.2,0.95312]
[1758618810004,1.21743213,4223.3,4223.2,1.15752]
[1758618810304,0.7339,4223.3,4223.2,1.15752]
[1758618813210,0.7339,4223.3,4223.2,0.64152]
[1758618813708,0.7339,4223.3,4223.2,1.17962]
[1758618815509,0.2162,4223.6,4223.5,1.18239]
[1758618815807,0.5217,4223.6,4223.5,1.18239]
[1758618816014,1.0047235,4223.6,4223.5,1.18239]
[1758618816214,1.2101235,4223.6,4223.5,1.18239]
[1758618816610,1.2101235,4223.6,4223.4,0.42589]
[1758618816816,1.3439235,4223.5,4223.4,0.42589]
[1758618817015,1.3439235,4223.5,4223.4,0.97779]
[1758618819208,1.2101235,4223.5,4223.4,1.18239]
[1758618821819,1.3439235,4223.5,4223.4,0.84889]
[1758618822013,1.3439235,4223.5,4223.4,1.18239]
[1758618822519,1.2101235,4223.5,4223.4,1.18239]
[1758618824225,1.3439235,4223.5,4223.4,1.18239]
[1758618829024,1.2101235,4223.5,4223.4,1.18239]
[1758618830024,1.3439235,4223.5,4223.4,1.18239]
[1758618831830,1.2101235,4223.5,4223.4,1.18239]
[1758618834227,1.3439235,4223.5,4223.4,1.18239]
[1758618835428,1.2101235,4223.5,4223.4,1.18239]
[1758618841837,0.63617,4224.7,4224.6,0.5362]
[1758618842031,0.84107,4224.7,4224.6,0.5362]
[1758618842335,1.17557,4224.7,4224.6,0.5362]
[1758618842531,0.7498,4224.7,4224.6,0.5362]
[1758618842737,0.7498,4224.7,4224.6,0.7548]
[1758618843034,0.7498,4224.7,4224.6,0.2187]
[1758618843633,0.7498,4224.7,4224.6,0.5362]
[1758618843835,0.7498,4224.7,4224.6,0.7548]
[1758618844634,0.3345,4225.3,4224.6,0.3175]
[1758618844928,0.7498,4225.3,4225.2,0.64442]
[1758618845339,0.7498,4225.3,4225.2,0.42572]
[1758618845534,0.4153,4224.2,4224.1,1.48946998]
[1758618845834,0.6954,4224.2,4224.1,0.96202]
[1758618846234,0.6954,4224.2,4224.1,0.5362]
[1758618846434,0.6954,4224.2,4224.1,0.3175]
[1758618848034,0.6954,4224.2,4224.1,0.5362]